bitfinex/quotes_SOLUSD_20241111
["timestamp","ask_amount","ask_price","bid_price","bid_amount"]
[1731357044236,35.59094424,219.01,218.89,6.1955]
[1731357044546,35.59094424,219.01,218.93,35.59094424]
[1731357044736,35.59094424,219.03,218.95,37.65235287]
[1731357044924,21.97662963,219.05,218.97,21.97662963]
[1731357045125,21.97662963,219.07,218.99,21.97662963]
[1731357045453,21.97662963,219.09,219.01,21.97662963]
[1731357045654,21.97662963,219.07,218.99,21.97662963]
[1731357046033,21.97662963,219.05,218.96,21.97662963]
[1731357046225,21.97662963,219.03,218.95,2.06140863]
[1731357046636,21.97662963,219.0,218.95,2.06140863]
[1731357046844,21.97662963,219.02,218.95,2.06140863]
[1731357047036,21.97662963,219.02,218.95,24.03803826]
[1731357047333,21.97662963,219.04,218.95,2.06140863]
[1731357047534,21.97662963,219.06,218.99,21.97662963]
[1731357047834,21.97662963,219.02,218.95,24.03803826]
[1731357049044,21.97662963,219.02,218.95,2.06140863]
[1731357049344,21.97662963,219.0,218.95,2.06140863]
[1731357049849,21.97662963,218.98,218.95,2.06140863]
[1731357050628,21.97662963,218.96,218.95,2.06140863]
[1731357052843,21.97662963,218.96,218.88,21.97662963]
[1731357053240,21.97662963,219.0,218.92,21.97662963]
[1731357053442,21.97662963,218.95,218.83,23.776884]
[1731357053649,21.97662963,218.95,218.88,21.97662963]
[1731357053949,21.97662963,218.96,218.88,21.97662963]
[1731357055753,21.97662963,218.98,218.9,21.97662963]
[1731357056248,21.97662963,218.96,218.88,21.97662963]
[1731357056424,21.97662963,218.96,218.82,22.1051]
[1731357056425,21.97662963,218.91,218.84,21.97662963]
[1731357056632,21.97662963,218.91,218.83,21.97662963]
[1731357058129,21.97662963,218.89,218.82,6.4987]
[1731357058331,21.97662963,218.89,218.81,21.97662963]
[1731357058727,26.18602963,219.01,218.78,21.97662963]
[1731357058728,21.97662963,218.87,218.78,21.97662963]
[1731357059032,21.97662963,218.87,218.8,21.97662963]
[1731357059954,21.97662963,218.85,218.78,21.97662963]
[1731357061052,3.5320903,219.01,218.83,21.97662963]
[1731357061350,21.97662963,218.99,218.91,21.97662963]
[1731357061560,21.97662963,218.97,218.82,0.1]
[1731357061859,21.97662963,218.95,218.86,21.97662963]
[1731357062353,21.97662963,218.95,218.79,22.07662963]
[1731357062354,21.97662963,218.95,218.88,21.97662963]
[1731357062561,21.97662963,218.89,218.79,23.776884]
[1731357062858,21.97662963,218.91,218.84,23.776884]
[1731357063057,21.97662963,218.93,218.85,21.97662963]
[1731357063264,15.4945,219.1,218.87,21.97662963]
[1731357063472,21.97662963,219.01,218.91,21.97662963]
[1731357063936,21.97662963,219.01,218.84,23.776884]
[1731357064137,21.97662963,218.95,218.87,21.97662963]
[1731357064849,21.97662963,218.95,218.85,21.97662963]
[1731357065056,21.97662963,218.93,218.86,23.776884]
[1731357065736,21.97662963,219.0,218.98,161.3]
[1731357065955,21.97662963,219.0,218.92,23.776884]
[1731357066259,21.97662963,219.0,218.91,21.97662963]
[1731357066454,6.347,219.08,218.91,21.97662963]
[1731357066455,21.97662963,218.98,218.91,21.97662963]
[1731357066765,21.97662963,218.98,218.89,21.97662963]
[1731357067059,21.97662963,218.98,218.9,23.776884]
[1731357068558,15.3945,219.1,218.97,23.776884]
[1731357068745,12.25503194,219.11,218.9,51.86561363]
[1731357068746,21.97662963,219.08,219.0,21.97662963]
[1731357068938,21.97662963,219.08,219.01,23.776884]
[1731357069138,21.97662963,219.1,219.01,23.776884]
[1731357069435,21.97662963,219.08,219.01,23.776884]
[1731357070335,8.73754435,219.07,219.02,21.97662963]
[1731357070541,21.97662963,219.12,219.03,23.776884]
[1731357071970,21.97662963,219.1,219.03,23.776884]
[1731357072159,21.97662963,219.1,219.02,23.776884]
[1731357072538,3.50895249,219.25,219.09,21.97662963]
[1731357072740,6.4706,219.31,219.05,0.1]
[1731357072741,21.97662963,219.23,219.05,20.91249264]
[1731357072945,21.97662963,219.21,219.14,23.776884]
[1731357073146,21.97662963,219.21,219.13,23.776884]
[1731357073546,21.97662963,219.21,219.13,45.75351363]
[1731357074364,21.97662963,219.23,219.13,45.75351363]
[1731357074661,6.4706,219.31,219.15,21.97662963]
[1731357074850,6.4706,219.31,219.16,23.776884]
[1731357074851,21.97662963,219.25,219.16,23.776884]
[1731357075169,18.243427,219.38,219.29,161.3]
[1731357075351,21.97662963,219.31,219.18,43.776884]
[1731357075555,21.97662963,219.31,219.22,23.776884]
[1731357076746,21.97662963,219.29,219.22,23.776884]
[1731357076946,21.97662963,219.31,219.22,23.776884]
[1731357077658,21.97662963,219.31,219.22,45.75351363]
[1731357077858,4.74153823,219.43,219.28,21.97662963]
[1731357078172,0.1,219.61,219.42,23.776884]
[1731357078352,10.2126,219.62,219.42,23.776884]
[1731357078353,21.97662963,219.51,219.42,23.776884]
[1731357078950,21.97662963,219.53,219.44,23.776884]
[1731357079147,6.1146,219.62,219.46,23.776884]
[1731357079455,21.97662963,219.52,219.46,23.776884]
[1731357079653,21.97662963,219.56,219.46,21.97662963]
[1731357079862,21.97662963,219.56,219.47,23.776884]
[1731357080262,21.97662963,219.54,219.44,21.97662963]
[1731357080456,6.1146,219.62,219.35,1.01115781]
[1731357080457,21.97662963,219.5,219.43,23.776884]
[1731357080644,0.1,219.68,219.45,43.776884]
[1731357080845,22.59723934,219.69,219.41,23.776884]
[1731357080846,35.54398113,219.57,219.48,23.776884]
[1731357081459,40.48008984,219.67,219.39,0.1]
[1731357081460,35.54398113,219.55,219.47,23.776884]
[1731357082976,35.54398113,219.55,219.45,23.776884]
[1731357083275,35.54398113,219.55,219.47,23.776884]
[1731357083452,35.54398113,219.55,219.48,23.776884]
[1731357083767,28.55608,219.72,219.47,35.54398113]
[1731357083768,0.1,219.69,219.59,161.3]
[1731357083971,35.54398113,219.64,219.57,23.776884]
[1731357084269,35.54398113,219.62,219.57,23.776884]
[1731357084646,35.54398113,219.62,219.55,23.776884]
[1731357084849,35.54398113,219.6,219.51,23.776884]
[1731357085046,35.54398113,219.58,219.51,23.776884]
[1731357086454,35.54398113,219.54,219.51,23.776884]
[1731357086849,35.54398113,219.62,219.52,35.54398113]
[1731357087065,35.54398113,219.62,219.53,23.776884]
[1731357087377,35.54398113,219.62,219.53,21.276884]
[1731357087570,35.54398113,219.6,219.53,21.276884]
[1731357087747,35.54398113,219.62,219.53,21.276884]
[1731357087946,35.54398113,219.64,219.54,35.54398113]
[1731357088152,35.54398113,219.62,219.53,21.276884]
[1731357088359,35.54398113,219.62,219.53,56.82086513]
[1731357088651,35.54398113,219.6,219.48,0.1]
[1731357088846,35.54398113,219.62,219.53,35.54398113]
[1731357089253,35.54398113,219.62,219.54,23.776884]
[1731357089678,35.54398113,219.62,219.53,23.776884]
[1731357090667,35.54398113,219.64,219.56,23.776884]
[1731357091069,35.54398113,219.66,219.56,23.776884]
[1731357091279,35.54398113,219.64,219.57,15.0093]
[1731357091481,35.54398113,219.64,219.58,23.776884]
[1731357092584,35.54398113,219.62,219.58,23.776884]
[1731357093179,35.54398113,219.6,219.5,15.0093]
[1731357093355,8.48863946,219.59,219.49,35.54398113]
[1731357093559,35.54398113,219.62,219.52,35.54398113]
[1731357093756,35.54398113,219.62,219.54,35.54398113]
[1731357094176,0.1,219.69,219.65,125.75601887]
[1731357094359,71.08796226,219.67,219.52,35.54398113]
[1731357094560,35.54398113,219.6,219.51,23.776884]
[1731357095580,35.54398113,219.56,219.51,23.776884]
[1731357095782,35.54398113,219.54,219.46,42.19118113]
[1731357096077,35.54398113,219.54,219.46,6.6472]
[1731357097978,35.54398113,219.52,219.46,6.6472]
[1731357098177,35.54398113,219.52,219.47,23.776884]
[1731357098563,35.54398113,219.54,219.47,23.776884]
[1731357099168,35.54398113,219.5,219.47,23.776884]
[1731357099358,35.54398113,219.48,219.43,15.0093]
[1731357099773,0.1,219.58,219.4,6.2612]
[1731357099981,10.5666,219.67,219.47,35.54398113]
[1731357100182,35.54398113,219.57,219.47,35.54398113]
[1731357101186,35.54398113,219.57,219.5,23.776884]
[1731357101362,35.54398113,219.53,219.5,23.776884]
[1731357101881,35.54398113,219.55,219.5,23.776884]
[1731357102183,35.54398113,219.53,219.5,23.776884]
[1731357102860,21.88416347,219.52,219.5,23.776884]
[1731357103068,21.88416347,219.52,219.43,21.88416347]
[1731357104572,21.88416347,219.54,219.45,21.88416347]
[1731357106001,21.88416347,219.52,219.43,21.88416347]
[1731357106280,21.88416347,219.44,219.4,6.2612]
[1731357106682,21.88416347,219.56,219.36,16.3739]
[1731357106683,21.88416347,219.42,219.36,16.3739]
[1731357108286,21.88416347,219.4,219.33,6.5112]
[1731357110487,6.2318,219.54,219.33,6.5112]
[1731357110488,21.88416347,219.37,219.33,6.5112]
[1731357110983,21.88416347,219.41,219.33,6.5112]
[1731357111188,21.88416347,219.41,219.33,28.39536347]
[1731357111364,4.74394147,219.51,219.44,139.41583653]
[1731357111568,21.88416347,219.45,219.33,28.39536347]
[1731357111792,21.88416347,219.38,219.33,6.5112]
[1731357114108,21.88416347,219.4,219.33,6.5112]
[1731357114683,21.88416347,219.36,219.33,6.5112]
[1731357115091,21.88416347,219.36,219.33,6.0112]
[1731357116380,21.88416347,219.34,219.23,38.28136347]
[1731357116688,21.88416347,219.31,219.23,38.28136347]
[1731357118074,21.88416347,219.31,219.24,6.5805]
[1731357118273,20.0,219.44,219.37,139.41583653]
[1731357118487,21.88416347,219.38,219.24,6.5805]
[1731357118689,20.0,219.44,219.24,6.5805]
[1731357118690,21.88416347,219.34,219.24,6.5805]
[1731357118874,20.0,219.44,219.24,28.46466347]
[1731357118875,21.88416347,219.32,219.24,28.46466347]
[1731357119074,21.88416347,219.34,219.27,21.88416347]
[1731357119480,21.88416347,219.32,219.24,6.5805]
[1731357119776,21.88416347,219.32,219.24,28.46466347]
[1731357120172,21.88416347,219.34,219.24,28.46466347]
[1731357120480,18.231536,219.46,219.27,20.0]
[1731357120674,21.88416347,219.39,219.3,21.88416347]
[1731357121575,21.88416347,219.36,219.27,20.91156221]
[1731357121780,21.88416347,219.36,219.24,6.5805]
[1731357121781,21.88416347,219.34,219.25,21.88416347]
[1731357122505,21.88416347,219.34,219.24,6.5805]
[1731357122674,21.88416347,219.36,219.27,21.88416347]
[1731357125292,21.88416347,219.38,219.29,21.88416347]
[1731357126074,21.88416347,219.38,219.25,20.0]
[1731357126292,21.88416347,219.38,219.28,21.88416347]
[1731357127096,21.88416347,219.36,219.28,21.88416347]
[1731357127396,21.88416347,219.36,219.26,0.91163551]
[1731357127397,21.88416347,219.34,219.26,21.88416347]
[1731357127586,21.88416347,219.32,219.24,28.46466347]
[1731357127894,21.88416347,219.34,219.24,28.46466347]
[1731357128085,21.88416347,219.34,219.26,21.88416347]
[1731357128880,21.88416347,219.36,219.28,21.88416347]
[1731357129894,21.88416347,219.4,219.31,21.88416347]
[1731357130183,21.88416347,219.38,219.29,21.88416347]
[1731357130491,16.0862,219.49,219.27,21.88416347]
[1731357130675,21.88416347,219.36,219.27,21.88416347]
[1731357130883,21.98416347,219.45,219.24,6.5805]
[1731357130884,21.88416347,219.32,219.24,6.5805]
[1731357131889,21.88416347,219.34,219.25,21.88416347]
[1731357132080,21.88416347,219.45,219.29,21.88416347]
[1731357132284,21.88416347,219.36,219.27,21.88416347]
[1731357132993,21.88416347,219.36,219.27,22.79576262]
[1731357133691,21.88416347,219.38,219.29,21.88416347]
[1731357133999,21.88416347,219.38,219.29,22.79572544]
[1731357134410,21.88416347,219.42,219.33,21.88416347]
[1731357134984,21.88416347,219.44,219.36,6.2441]
[1731357135292,21.88416347,219.42,219.36,6.2441]
[1731357135491,21.88416347,219.4,219.36,6.2441]
[1731357135702,21.88416347,219.38,219.31,28.51026347]
[1731357136084,21.88416347,219.4,219.31,28.51026347]
[1731357136382,21.88416347,219.42,219.33,21.88416347]
[1731357137197,12.49206985,219.53,219.33,21.88416347]
[1731357137198,21.88416347,219.44,219.35,21.88416347]
[1731357137405,21.88416347,219.44,219.36,0.91128617]
[1731357137593,21.88416347,219.46,219.37,21.88416347]
[1731357137785,21.88416347,219.48,219.39,21.88416347]
[1731357138104,21.88416347,219.46,219.36,21.88416347]
[1731357138488,21.88416347,219.46,219.37,20.0]
[1731357138686,21.88416347,219.42,219.35,20.0]
[1731357138995,21.88416347,219.4,219.34,16.1803]
[1731357140297,21.88416347,219.38,219.34,16.1803]
[1731357141604,21.88416347,219.38,219.28,21.88416347]
[1731357141809,21.88416347,219.38,219.3,21.88416347]
[1731357142018,0.1,219.55,219.32,21.88416347]
[1731357142311,0.1,219.55,219.3,1.01152048]
[1731357142312,21.88416347,219.42,219.34,21.88416347]
[1731357143022,33.07890272,219.56,219.38,21.88416347]
[1731357143023,11.09473925,219.56,219.38,21.88416347]
[1731357143233,21.88416347,219.49,219.41,20.0]
[1731357143515,21.88416347,219.47,219.39,16.2683]
[1731357143707,21.88416347,219.45,219.39,16.2683]
[1731357143909,21.88416347,219.47,219.39,16.2683]
[1731357144108,6.3472,219.56,219.39,38.15246347]
[1731357144292,6.3472,219.56,219.39,16.2683]
[1731357144293,21.88416347,219.44,219.39,16.2683]
[1731357144916,21.88416347,219.4,219.33,38.15246347]
[1731357145094,21.88416347,219.38,219.33,16.2683]
[1731357145491,20.0,219.55,219.35,21.88416347]
[1731357145800,21.88416347,219.38,219.33,16.2683]
[1731357145997,21.88416347,219.36,219.33,16.2683]
[1731357146898,13.69507474,219.37,219.33,16.2683]
[1731357147301,13.69507474,219.39,219.33,16.2683]
[1731357147822,13.69507474,219.41,219.33,16.2683]
[1731357147999,13.69507474,219.43,219.34,13.69507474]
[1731357148714,13.69507474,219.43,219.33,16.2683]
[1731357148715,13.69507474,219.43,219.36,13.69507474]
[1731357148904,21.89879076,219.43,219.35,21.89879076]
[1731357149316,21.89879076,219.45,219.35,21.89879076]
[1731357149515,28.24599076,219.56,219.35,21.89879076]
[1731357149516,21.89879076,219.47,219.39,21.89879076]
[1731357150397,21.89879076,219.49,219.41,21.89879076]
[1731357150699,21.89879076,219.49,219.39,21.89879076]
[1731357150902,21.89879076,219.47,219.39,21.89879076]
[1731357151119,21.89879076,219.49,219.41,21.89879076]
[1731357151619,21.89879076,219.49,219.42,6.4066]
[1731357152602,21.89879076,219.51,219.43,21.89879076]
[1731357152794,6.3864,219.61,219.45,21.89879076]
[1731357152795,21.89879076,219.53,219.45,21.89879076]
[1731357153213,21.89879076,219.55,219.47,21.89879076]
[1731357153801,21.89879076,219.49,219.46,15.9802]
[1731357154913,21.89879076,219.47,219.46,15.9802]
[1731357157034,21.89879076,219.49,219.46,15.9802]
[1731357157530,21.89879076,219.51,219.46,15.9802]
[1731357157704,6.0462,219.67,219.56,161.3]
[1731357157907,6.0462,219.67,219.46,37.87899076]
[1731357157908,21.89879076,219.57,219.46,37.87899076]
[1731357158207,27.94499076,219.67,219.46,37.87899076]
[1731357158208,21.89879076,219.51,219.46,15.9802]
[1731357158815,21.89879076,219.49,219.46,15.9802]
[1731357161730,21.89879076,219.51,219.46,15.9802]
[1731357162128,21.89879076,219.53,219.46,15.9802]
[1731357162509,23.776884,219.66,219.47,20.0]
[1731357162809,21.89879076,219.52,219.47,20.0]
[1731357163009,23.776884,219.66,219.57,139.40120924]
[1731357163210,23.776884,219.66,219.47,20.0]
[1731357163211,21.89879076,219.58,219.47,20.0]
[1731357163512,21.89879076,219.52,219.47,20.0]
[1731357164444,21.89879076,219.54,219.47,20.0]
[1731357164616,0.1,219.69,219.47,20.0]
[1731357164617,20.0,219.7,219.51,6.1355]
[1731357164819,20.0,219.68,219.53,27.36]
[1731357165140,41.89879076,219.64,219.56,21.89879076]
[1731357165315,41.89879076,219.64,219.57,0.91038178]
[1731357165519,21.89879076,219.62,219.55,16.6086]
[1731357165712,21.89879076,219.6,219.56,23.776884]
[1731357165911,21.89879076,219.58,219.56,23.776884]
[1731357166636,4.74264276,219.71,219.56,23.776884]
[1731357166824,21.89879076,219.58,219.56,23.776884]
[1731357167008,21.89879076,219.58,219.55,16.6086]
[1731357167210,21.89879076,219.56,219.48,15.7553]
[1731357167420,21.89879076,219.52,219.48,15.7553]
[1731357167636,21.89879076,219.5,219.48,15.7553]
[1731357168138,21.89879076,219.52,219.48,15.7553]
[1731357168848,21.89879076,219.54,219.49,23.776884]
[1731357169136,38.15959076,219.67,219.51,23.776884]
[1731357169137,21.89879076,219.56,219.51,23.776884]
[1731357170444,21.89879076,219.56,219.5,23.776884]
[1731357171216,21.89879076,219.56,219.49,23.776884]
[1731357171513,21.89879076,219.52,219.49,23.776884]
[1731357171736,21.89879076,219.52,219.48,15.7553]
[1731357172841,13.67639365,219.49,219.41,0.1]
[1731357173020,13.67639365,219.49,219.43,15.4481]
[1731357173329,13.67639365,219.47,219.43,15.4481]
[1731357173916,13.67639365,219.49,219.43,15.4481]
[1731357174123,13.67639365,219.51,219.43,16.35911005]
[1731357174333,13.67639365,219.51,219.47,23.776884]
[1731357174939,21.88052006,219.5,219.47,23.776884]
[1731357175151,21.88052006,219.48,219.47,23.776884]
[1731357175835,20.0,219.59,219.47,23.776884]
[1731357176140,21.88052006,219.48,219.47,23.776884]
[1731357176529,11.08561275,219.65,219.47,23.776884]
[1731357176839,21.88052006,219.48,219.47,23.776884]
[1731357177213,21.88052006,219.56,219.47,23.776884]
[1731357177214,21.88052006,219.5,219.47,23.776884]
[1731357178043,21.88052006,219.48,219.47,23.776884]
[1731357179446,21.88052006,219.48,219.4,6.271]
[1731357179641,21.88052006,219.46,219.4,7.18212486]
[1731357179840,21.88052006,219.56,219.4,7.18212486]
[1731357179841,21.88052006,219.44,219.4,7.18212486]
[1731357180038,21.88052006,219.42,219.4,6.271]
[1731357181254,21.88052006,219.42,219.35,6.4974]
[1731357181542,21.88052006,219.36,219.33,15.0039]
[1731357181749,43.76104012,219.34,219.27,15.0039]
[1731357182045,21.88052006,219.28,219.27,15.0039]
[1731357184233,21.88052006,219.28,219.27,38.780784]
[1731357185122,21.88052006,219.3,219.28,23.776884]
[1731357185328,21.88052006,219.34,219.28,23.776884]
[1731357185637,21.88052006,219.45,219.28,23.776884]
[1731357185638,21.88052006,219.38,219.32,23.776884]
[1731357185821,21.88052006,219.4,219.34,23.776884]
[1731357186021,21.88052006,219.4,219.36,23.776884]
[1731357186837,21.88052006,219.42,219.36,23.776884]
[1731357187040,21.88052006,219.47,219.4,23.776884]
[1731357187240,21.88052006,219.47,219.42,23.776884]
[1731357187536,21.88052006,219.45,219.42,23.776884]
[1731357189151,21.88052006,219.47,219.42,23.776884]
[1731357189529,21.88052006,219.5,219.44,23.776884]
[1731357190038,21.88052006,219.48,219.44,23.776884]
[1731357190749,21.88052006,219.48,219.43,23.776884]
[1731357191334,21.88052006,219.5,219.45,23.776884]
[1731357192363,21.88052006,219.5,219.44,0.91092383]
[1731357192534,15.9942,219.63,219.54,139.41947994]
[1731357192739,15.9942,219.63,219.43,45.65740406]
[1731357192740,21.88052006,219.55,219.43,45.65740406]
[1731357192938,21.88052006,219.51,219.45,23.776884]
[1731357193247,21.88052006,219.51,219.47,23.776884]
[1731357193847,21.88052006,219.49,219.47,23.776884]
[1731357194150,15.9942,219.63,219.41,1.01098128]
[1731357194359,15.9942,219.63,219.43,0.1]
[1731357194552,21.88052006,219.52,219.44,0.91072438]
[1731357194747,21.88052006,219.5,219.44,0.91072438]
[1731357194950,21.88052006,219.48,219.44,0.91072438]
[1731357195149,21.88052006,219.48,219.42,20.0]
[1731357195150,21.88052006,219.48,219.43,23.776884]
[1731357195344,21.88052006,219.48,219.42,23.776884]
[1731357195549,21.88052006,219.46,219.42,23.776884]
[1731357196040,21.88052006,219.48,219.42,23.776884]
[1731357196367,21.88052006,219.46,219.41,23.776884]
[1731357196662,21.88052006,219.48,219.42,0.91098086]
[1731357196864,21.88052006,219.5,219.43,45.65740406]
[1731357197073,21.88052006,219.48,219.45,23.776884]
[1731357197458,21.88052006,219.5,219.45,23.776884]
[1731357198277,21.88052006,219.48,219.45,23.776884]
[1731357198569,21.88052006,219.46,219.45,23.776884]
[1731357198775,21.88052006,219.48,219.45,23.776884]
[1731357199246,21.88052006,219.5,219.45,23.776884]
[1731357199449,21.88052006,219.5,219.47,23.776884]
[1731357199873,21.88052006,219.48,219.47,23.776884]
[1731357200743,13.6765248,219.49,219.47,23.776884]
[1731357201551,13.6765248,219.49,219.39,16.0267]
[1731357201746,13.6765248,219.48,219.4,14.58752561]
[1731357202143,13.6765248,219.5,219.43,0.1]
[1731357202350,15.9942,219.63,219.44,0.91081092]
[1731357202563,13.6765248,219.51,219.44,0.91081092]
[1731357202867,13.6765248,219.49,219.41,0.2]
[1731357203045,13.6765248,219.47,219.42,0.91085228]
[1731357203246,13.6765248,219.45,219.43,23.776884]
[1731357203561,13.6765248,219.45,219.41,23.776884]
[1731357203741,13.6765248,219.43,219.4,23.776884]
[1731357204151,13.6765248,219.45,219.4,23.776884]
[1731357204346,13.6765248,219.56,219.51,147.6234752]
[1731357204567,13.6765248,219.56,219.4,37.4534088]
[1731357204568,13.6765248,219.52,219.4,23.776884]
[1731357204869,13.6765248,219.46,219.4,23.776884]
[1731357205269,10.34831493,219.45,219.4,23.776884]
[1731357205588,13.6765248,219.46,219.39,16.93771866]
[1731357205767,13.6765248,219.46,219.4,20.0]
[1731357206261,13.6765248,219.48,219.4,20.0]
[1731357206567,9.66330095,219.47,219.41,0.91104688]
[1731357206873,13.6765248,219.46,219.39,16.0267]
[1731357207578,13.6765248,219.48,219.4,0.91117126]
[1731357207742,13.6765248,219.48,219.4,34.58769606]
[1731357208258,13.6765248,219.48,219.41,23.776884]
[1731357208578,13.6765248,219.48,219.43,23.776884]
[1731357209551,13.6765248,219.5,219.45,23.776884]
[1731357210647,15.9942,219.63,219.45,23.776884]
[1731357210648,13.6765248,219.47,219.45,23.776884]
[1731357210865,20.0,219.62,219.45,23.776884]
[1731357211070,13.6765248,219.52,219.44,23.776884]
[1731357211273,13.6765248,219.56,219.44,23.776884]
[1731357211274,13.6765248,219.5,219.44,23.776884]
[1731357211459,13.6765248,219.5,219.43,23.776884]
[1731357211660,13.6765248,219.48,219.42,0.91087966]
[1731357211949,13.6765248,219.46,219.38,20.80365096]
[1731357212463,13.6765248,219.46,219.4,0.91105866]
[1731357212672,13.6765248,219.48,219.4,14.58758346]
[1731357213059,13.6765248,219.48,219.41,23.776884]
[1731357213886,13.6765248,219.44,219.4,0.91105866]
[1731357214185,13.6765248,219.46,219.38,19.8926248]
[1731357214373,13.6765248,219.56,219.4,13.6765248]
[1731357214374,13.6765248,219.48,219.4,13.6765248]
[1731357214566,13.6765248,219.48,219.41,0.91102156]
[1731357215258,13.6765248,219.48,219.42,23.776884]
[1731357218067,13.6765248,219.5,219.42,23.776884]
[1731357218272,13.6765248,219.5,219.41,0.91102156]
[1731357218273,13.6765248,219.5,219.44,23.776884]
[1731357219079,13.6765248,219.48,219.44,23.776884]
[1731357222070,13.6765248,219.56,219.52,147.6234752]
[1731357222265,13.6765248,219.53,219.44,23.776884]
[1731357222476,13.6765248,219.49,219.42,23.776884]
[1731357223379,13.6765248,219.47,219.42,23.776884]
[1731357223581,13.6765248,219.45,219.4,23.776884]
[1731357224583,13.6765248,219.47,219.4,37.4534088]
[1731357224783,13.6765248,219.47,219.42,23.776884]
[1731357226369,13.6765248,219.49,219.42,23.776884]
[1731357226568,13.6765248,219.49,219.42,28.86072166]
[1731357226769,13.6765248,219.49,219.44,23.776884]
[1731357227467,13.6765248,219.47,219.44,23.776884]
[1731357228062,13.6765248,219.51,219.45,23.776884]
[1731357228266,13.6765248,219.53,219.45,28.86072166]
[1731357228666,13.6765248,219.51,219.45,28.86072166]
[1731357229564,13.6765248,219.67,219.57,23.776884]
[1731357230274,0.1,219.66,219.57,23.776884]
[1731357230776,0.1,219.72,219.57,23.776884]
[1731357230964,13.6765248,219.59,219.54,23.776884]
[1731357231164,13.6765248,219.57,219.54,23.776884]
[1731357233101,13.6765248,219.57,219.48,41.94715883]
[1731357233102,13.6765248,219.59,219.53,51.036884]
[1731357233279,13.6765248,219.61,219.54,40.9365248]
[1731357233486,13.6765248,219.61,219.56,6.2866]
[1731357233790,13.6765248,219.63,219.57,23.776884]
[1731357233984,13.6765248,219.78,219.57,23.776884]
[1731357233985,13.6765248,219.65,219.59,23.776884]
[1731357234177,13.6765248,219.67,219.61,23.776884]
[1731357235767,13.6765248,219.67,219.6,51.036884]
[1731357235968,13.66796842,219.67,219.6,51.036884]
[1731357236193,13.6765248,219.78,219.72,147.63203158]
[1731357236388,16.0511,219.79,219.6,51.036884]
[1731357236592,16.0511,219.79,219.6,56.30127722]
[1731357236890,0.1,219.85,219.63,57.222084]
[1731357236891,4.7403361,219.85,219.63,57.222084]
[1731357237094,4.7403361,219.85,219.65,27.26]
[1731357237395,15.3883,219.86,219.66,23.776884]
[1731357237895,13.6765248,219.75,219.68,23.776884]
[1731357238103,13.6765248,219.75,219.67,13.6765248]
[1731357238305,13.6765248,219.75,219.68,23.776884]
[1731357238801,13.6765248,219.75,219.68,13.6765248]
[1731357239297,13.6765248,219.75,219.67,37.4534088]
[1731357239690,13.6765248,219.75,219.69,23.776884]
[1731357240196,13.6765248,219.77,219.7,13.6765248]
[1731357240408,13.6765248,219.76,219.69,37.4534088]
[1731357240705,13.6765248,219.76,219.7,23.776884]
[1731357240876,13.7765248,219.89,219.7,23.776884]
[1731357240877,10.17585663,219.75,219.73,13.6765248]
[1731357241079,13.6765248,219.83,219.74,43.5887088]
[1731357241304,13.6765248,219.89,219.76,23.776884]
[1731357241600,13.4449197,219.89,219.76,23.776884]
[1731357241998,13.6765248,219.82,219.76,23.776884]
[1731357242205,13.4449197,219.89,219.86,147.6234752]
[1731357242380,13.6765248,219.87,219.75,23.776884]
[1731357242695,13.6765248,219.83,219.77,23.776884]
[1731357242911,13.6765248,219.85,219.77,37.4534088]
[1731357243082,13.6765248,219.84,219.77,43.25640717]
[1731357243276,13.6765248,219.83,219.77,29.57988237]
[1731357243590,13.6765248,219.83,219.75,37.4534088]
[1731357243791,13.6765248,219.85,219.78,13.6765248]
[1731357244096,13.6765248,219.86,219.79,23.776884]
[1731357244501,13.6765248,219.85,219.79,23.776884]
[1731357244805,13.6765248,219.87,219.79,13.6765248]
[1731357244990,13.6765248,219.88,219.8,37.4534088]
[1731357245201,13.6765248,219.88,219.8,23.776884]
[1731357245397,13.6765248,219.89,219.82,23.776884]
[1731357245708,22.5686,219.98,219.86,23.776884]
[1731357245882,22.5686,219.98,219.84,23.776884]
[1731357246203,13.6765248,219.92,219.87,23.776884]
[1731357246402,13.6765248,219.91,219.85,23.776884]
[1731357246699,13.6765248,219.94,219.87,23.776884]
[1731357247079,13.6765248,219.94,219.87,37.4534088]
[1731357247289,13.6765248,219.96,219.89,37.4534088]
[1731357247599,10.0,220.0,219.89,37.4534088]
[1731357247600,13.6765248,219.95,219.89,30.20771015]
[1731357247784,13.6765248,219.93,219.88,23.776884]
[1731357247982,13.6765248,219.93,219.86,23.776884]
[1731357248185,13.6765248,219.92,219.86,23.776884]